bitfinex-derivatives/quotes_ETHF0:USTF0_20250531
["timestamp","ask_amount","ask_price","bid_price","bid_amount"]
[1748713988072,0.79038,2529.2,2529.1,0.79632956]
[1748713988577,0.79038,2529.2,2529.1,0.00592956]
[1748713989775,0.79038,2529.2,2529.1,0.79634956]
[1748713992974,0.79038,2529.2,2529.1,0.00592956]
[1748713993371,2.09908,2529.2,2529.1,0.00592956]
[1748713995180,6.38108,2529.2,2529.1,0.00592956]
[1748713996879,6.38108,2529.2,2528.0,1.97689]
[1748713996880,10.5907,2529.2,2528.0,1.97689]
[1748713997080,0.79063,2528.4,2528.3,2.05445]
[1748713997281,0.79063,2528.4,2528.3,1.2638]
[1748713998376,0.7907,2528.2,2528.1,1.30282956]
[1748713998682,3.2078,2529.3,2528.5,1.97651]
[1748713998877,3.2078,2529.3,2529.0,0.79042]
[1748713998878,2.34144014,2529.2,2529.0,0.79042]
[1748713999076,6.62344014,2529.2,2528.7,0.6421]
[1748713999279,0.79042,2529.1,2528.9,0.79045]
[1748713999574,7.41384014,2529.2,2529.0,0.79044]
[1748713999775,18.84,2529.1,2529.0,0.79044]
[1748714000373,2.34144014,2529.2,2529.1,0.79041]
[1748714001086,4.282,2529.5,2529.4,0.79032]
[1748714001279,4.282,2529.8,2529.5,0.79029]
[1748714001479,4.282,2529.8,2529.5,2.68589]
[1748714001679,23.142,2529.8,2529.5,2.68589]
[1748714001981,0.79017,2529.9,2529.5,2.68589]
[1748714002186,23.139,2529.8,2529.5,2.68589]
[1748714002576,4.64423014,2530.1,2529.5,0.6421]
[1748714002886,23.15492956,2529.6,2529.2,0.6367]
[1748714003090,23.94516956,2529.6,2529.4,0.79029]
[1748714003285,23.94517956,2529.6,2529.4,0.79029]
[1748714003690,23.15492956,2529.6,2529.5,0.79027]
[1748714004292,23.15492956,2529.6,2529.3,1.878]
[1748714004489,4.28792956,2529.6,2529.5,0.79027]
[1748714004786,0.00592956,2529.6,2529.5,0.79027]
[1748714005386,23.164,2530.1,2530.0,0.79013]
[1748714005583,27.16182,2530.4,2529.6,1.9756]
[1748714005786,0.79005,2530.3,2529.7,1.3201]
[1748714005990,8.27982,2530.4,2530.1,0.79007]
[1748714006183,18.877,2530.3,2530.1,0.79007]
[1748714006386,19.66706,2530.3,2530.1,0.79007]
[1748714006986,0.79006,2530.3,2530.1,0.79007]
[1748714007289,4.282,2530.2,2530.1,0.79007]
[1748714008585,4.282,2530.2,2529.9,2.79695956]
[1748714008791,0.79011,2530.1,2529.9,2.79695956]
[1748714008990,0.79011,2530.1,2530.0,0.79013]
[1748714009192,4.282,2530.2,2530.1,0.7901]
[1748714009693,24.14162,2530.4,2529.9,2.00682956]
[1748714009694,26.3438,2530.4,2529.9,2.00682956]
[1748714009992,8.27881,2530.4,2530.2,0.79005]
[1748714010294,27.1348,2530.4,2530.3,1.2879]
[1748714010494,26.3448,2530.4,2530.3,2.07794]
[1748714010996,26.3448,2530.4,2530.3,1.2879]
[1748714011290,27.1348,2530.4,2530.3,1.2879]
[1748714011491,26.3448,2530.4,2530.3,2.07794]
[1748714012087,7.4888,2530.4,2530.3,2.07794]
[1748714012288,26.3258,2530.4,2530.3,2.07794]
[1748714012484,12.4888,2530.4,2529.9,0.00592956]
[1748714012685,0.79009,2530.2,2529.9,0.00592956]
[1748714012890,0.79013,2530.0,2529.9,0.00592956]
[1748714014089,8.27893,2530.0,2529.9,0.00592956]
[1748714016594,1.97556,2529.8,2529.1,3.2078]
[1748714016796,3.2078,2529.4,2528.9,1.9918]
[1748714016997,0.7904,2529.2,2529.1,0.7904]
[1748714017191,0.79037,2529.3,2529.2,0.79037]
[1748714017394,0.79039,2529.2,2529.1,0.79039]
[1748714017597,23.444,2529.4,2528.9,1.99772956]
[1748714017799,0.79039,2529.2,2529.1,0.79039]
[1748714019996,0.79037,2529.3,2529.2,0.79037]
[1748714020592,23.444,2529.4,2528.9,1.99772956]
[1748714020798,22.86713,2529.4,2529.3,0.79035]
[1748714021097,22.0768,2529.4,2529.0,0.667]
[1748714021300,0.79039,2529.2,2529.1,2.11639]
[1748714021798,0.79039,2529.2,2529.1,1.326]
[1748714022299,0.79039,2529.2,2529.1,2.11641]
[1748714022498,0.79039,2529.2,2529.1,1.326]
[1748714024001,0.79039,2529.2,2529.1,2.11641]
[1748714026302,3.2078,2529.4,2529.3,0.79035]
[1748714026497,22.0268,2529.4,2529.3,0.79035]
[1748714026803,22.82012,2529.4,2529.3,0.79035]
[1748714027303,3.99812,2529.4,2529.3,0.79035]
[1748714027599,22.81412,2529.4,2529.3,0.79035]
[1748714027801,22.0238,2529.4,2529.3,0.79035]
[1748714028201,22.81412,2529.4,2529.3,0.79035]
[1748714029907,22.0238,2529.4,2529.3,0.79035]
[1748714030098,22.81412,2529.4,2529.3,0.79035]
[1748714031105,22.0238,2529.4,2529.3,0.79035]
[1748714031298,22.81412,2529.4,2529.3,0.79035]
[1748714032705,22.0238,2529.4,2529.3,0.79035]
[1748714032906,22.81412,2529.4,2529.3,0.79035]
[1748714033608,0.79037,2529.3,2529.2,0.79035]
[1748714033908,22.81412,2529.4,2529.3,0.79035]
[1748714036917,22.81414,2529.4,2529.3,0.79035]
[1748714038101,0.79031,2529.5,2529.4,0.79029]
[1748714038404,19.52331,2529.5,2529.4,0.79029]
[1748714038910,8.94026,2529.7,2529.6,0.79025]
[1748714039212,0.7903,2529.6,2529.5,0.79027]
[1748714039411,19.5123,2529.6,2529.5,0.79027]
[1748714040113,19.5163,2529.6,2529.5,0.79027]
[1748714041112,20.63308297,2529.6,2529.5,0.79027]
[1748714042521,20.88011221,2529.6,2529.5,0.79027]
[1748714043206,20.88012771,2529.6,2529.5,0.79027]
[1748714043410,20.88012782,2529.6,2529.5,0.79027]
[1748714043615,20.88025874,2529.6,2529.5,0.79027]
[1748714043815,20.88026077,2529.6,2529.5,0.79027]
[1748714044011,20.63308297,2529.6,2529.5,0.79027]
[1748714044212,20.88025984,2529.6,2529.5,0.79027]
[1748714044811,20.08995816,2529.6,2529.2,3.30473]
[1748714045018,1.03749485,2529.5,2529.4,0.79029]
[1748714045319,1.0377189,2529.5,2529.4,0.79029]
[1748714045518,0.79032,2529.5,2529.4,0.79029]
[1748714046318,1.03770706,2529.5,2529.4,0.79029]
[1748714046617,0.79032,2529.5,2529.4,0.79029]
[1748714047118,1.90710297,2529.5,2529.4,0.79029]
[1748714047817,2.15449402,2529.5,2529.4,0.79029]
[1748714048018,2.15449354,2529.5,2529.4,0.79029]
[1748714048218,1.90710297,2529.5,2529.4,1.45789]
[1748714048420,2.1544938,2529.5,2529.4,1.45789]
[1748714049219,2.15455879,2529.5,2529.4,1.45792]
[1748714049520,2.15456368,2529.5,2529.4,1.45792]
[1748714049718,1.36424368,2529.5,2529.4,1.45792]
[1748714050019,2.33887642,2529.8,2529.7,0.79022]
[1748714051723,19.44811,2530.1,2530.0,0.79013]
[1748714051923,0.79009,2530.2,2530.1,0.79008]
[1748714052220,0.79011,2530.1,2530.0,0.7901]
[1748714052416,0.79005,2530.3,2530.2,0.79007]
[1748714052615,19.43605,2530.3,2530.2,0.79007]
[1748714054724,0.79007,2530.2,2530.1,0.79008]
[1748714054924,3.2078,2530.4,2529.9,2.65239]
[1748714055123,0.79005,2530.3,2530.2,0.79005]
[1748714056621,21.8338,2530.4,2530.2,0.79005]
[1748714056826,0.79006,2530.3,2530.2,0.79004]
[1748714058323,0.79016,2529.9,2529.8,0.6192]
[1748714058528,0.79019,2529.8,2529.7,0.79021]
[1748714059529,5.27875,2530.0,2529.9,0.79016]
[1748714060025,0.7902,2529.9,2529.5,2.6081]
[1748714060231,0.79024,2529.7,2529.6,0.79022]
[1748714061734,0.79025,2529.6,2529.5,0.6324]
[1748714061931,0.79033,2529.4,2529.1,5.18377]
[1748714062131,0.79033,2529.4,2529.3,0.79035]
[1748714062837,0.79037,2529.3,2529.2,0.79035]
[1748714063530,9.193,2529.3,2528.9,0.00592956]
[1748714063731,0.79044,2529.0,2528.9,0.00592956]
[1748714064029,0.98814,2529.0,2528.9,0.00592956]
[1748714064234,7.27724,2529.0,2528.9,0.00592956]
[1748714064435,7.5222396,2529.0,2528.9,0.00592956]
[1748714064734,7.27724,2529.0,2528.9,0.00592956]
[1748714065133,0.79063,2528.4,2528.3,2.05825]
[1748714066034,0.79061,2528.5,2528.4,0.79062]
[1748714066231,22.61937,2528.6,2528.5,0.7906]
[1748714066432,0.7906,2528.5,2528.4,2.11992]
[1748714066637,22.61938,2528.6,2528.5,0.7906]
[1748714067436,0.7906,2528.5,2528.4,2.11991]
[1748714067633,22.61939,2528.6,2528.5,0.7906]
[1748714067833,3.2078,2528.6,2528.5,0.7906]
[1748714068036,21.8148,2528.6,2528.5,0.7906]
[1748714068230,22.60537,2528.6,2528.5,0.7906]
[1748714068833,22.60537,2528.6,2527.9,5.18474]
[1748714068834,21.8148,2528.6,2528.0,1.97689]
[1748714069040,23.182,2528.6,2528.0,2.6355]
[1748714069240,0.79072,2528.1,2528.0,3.42624]
[1748714069443,0.79071,2528.2,2528.1,0.79071]
[1748714070535,7.4018,2528.3,2527.6,3.2078]
[1748714070732,0.79075,2528.1,2528.0,0.79073]
[1748714070931,7.4018,2528.3,2528.1,0.79072]
[1748714070932,2.15791,2528.2,2528.1,0.79072]
[1748714071333,8.19248,2528.3,2528.2,0.79069]
[1748714073435,3.2078,2528.3,2528.2,0.79069]
[1748714074342,0.79064,2528.4,2528.3,0.79064]
[1748714074937,19.40161,2528.5,2528.4,0.79063]
[1748714075143,18.611,2528.5,2528.4,0.79063]
[1748714075342,18.611,2528.5,2528.1,1.97679]
[1748714075343,3.2078,2528.6,2528.5,0.7906]
[1748714075542,21.8128,2528.6,2528.5,0.7906]
[1748714076443,22.6034,2528.6,2528.5,0.7906]
[1748714077645,22.8011,2528.6,2528.5,0.7906]
[1748714078240,22.0105,2528.6,2528.2,1.9272]
[1748714078446,0.79062,2528.5,2528.4,0.7906]
[1748714079645,0.79063,2528.4,2528.3,2.07974]
[1748714080644,0.79066,2528.3,2528.2,0.6517]
[1748714080850,0.79069,2528.2,2528.1,1.4605]
[1748714081742,0.79069,2528.2,2528.1,0.7907]
[1748714082346,0.79068,2528.3,2528.2,0.79066]
[1748714082754,0.79072,2528.2,2528.1,0.7907]
[1748714084554,0.79069,2528.3,2528.2,0.79066]
[1748714086758,0.79075,2528.0,2527.9,5.28396]
[1748714086957,0.79075,2528.0,2527.9,2.07618]
[1748714087258,0.79074,2528.1,2528.0,0.79071]
[1748714089856,4.93872,2528.2,2528.1,0.79069]
[1748714090054,0.79072,2528.2,2528.1,0.79069]
[1748714090255,23.47272,2528.2,2528.1,0.79069]
[1748714090555,23.67042,2528.2,2528.1,0.79069]
[1748714092453,0.98842,2528.2,2528.1,0.79069]
[1748714092660,0.1977,2528.2,2528.1,0.79069]
[1748714093060,5.1977,2528.2,2527.6,3.2078]
[1748714093255,0.79091,2527.5,2526.8,3.90236165]
[1748714093553,22.823,2527.5,2527.0,3.2078]
[1748714093752,22.823,2527.5,2527.4,0.94690936]
[1748714093952,18.675,2527.5,2527.4,0.94690936]
[1748714094152,0.7909,2527.6,2527.5,0.7909]
[1748714094457,0.7909,2527.6,2527.5,0.6368]
[1748714097461,21.89872956,2527.7,2527.6,0.79088]
[1748714097760,22.68959956,2527.7,2527.5,1.4277]
[1748714097958,2.33887642,2528.3,2527.6,3.2078]
[1748714098165,1.83025316,2528.6,2528.5,0.7906]
[1748714098463,1.9907,2529.4,2528.6,1.9764]
[1748714098651,2.78103,2529.4,2528.6,1.9764]
[1748714098961,1.9907,2529.4,2528.8,5.18403]
[1748714099162,0.00592956,2529.3,2528.8,3.2078]
[1748714099364,0.79628956,2529.3,2529.0,0.79042]
[1748714099563,0.7904,2529.2,2528.9,0.79046]
[1748714099861,0.7904,2529.2,2529.0,0.79044]
[1748714100062,0.00592956,2529.3,2529.0,0.79044]
[1748714100063,0.79629956,2529.3,2529.0,0.79044]
[1748714100362,0.79629956,2529.3,2529.1,0.79041]
[1748714100557,0.00592956,2529.3,2528.8,3.2078]
[1748714100760,1.281,2529.2,2528.8,3.99829]
[1748714100961,0.98803,2529.1,2528.9,0.79047]
[1748714101163,0.98803,2529.1,2528.8,3.99828]
[1748714101364,2.26903,2529.1,2528.8,3.99828]
[1748714101563,0.79044,2529.0,2528.8,3.99828]
[1748714101765,1.281,2528.9,2528.8,3.99828]
[1748714102070,2.07147,2528.9,2528.8,3.2078]
[1748714102265,2.07147,2528.9,2528.7,0.79645956]
[1748714102667,2.07149,2528.9,2528.7,0.79645956]
[1748714103660,3.4054,2529.1,2529.0,0.79044]
[1748714105567,3.4054,2529.1,2528.9,0.79046]
[1748714105768,3.4054,2529.1,2529.0,0.79044]
[1748714106970,0.1976,2529.1,2529.0,0.79044]
[1748714107370,0.1976,2529.1,2529.0,3.99824]
[1748714109472,0.00592956,2529.3,2529.2,0.79038]
[1748714110070,0.00592956,2529.3,2529.2,5.79038]
[1748714113368,0.00592956,2529.3,2529.2,0.79038]
[1748714113768,9.56e-06,2529.3,2529.2,5.79038]
[1748714115574,9.56e-06,2529.3,2529.2,6.90584856]
[1748714121181,9.56e-06,2529.3,2529.2,6.19384856]
[1748714122478,9.56e-06,2529.3,2529.2,11.19384856]
[1748714124374,9.56e-06,2529.3,2529.2,6.19384856]
[1748714124584,9.56e-06,2529.3,2529.2,11.19384856]
[1748714128481,9.56e-06,2529.3,2529.2,6.19384856]
[1748714128670,9.56e-06,2529.3,2529.2,1.90584856]
[1748714128873,9.56e-06,2529.3,2529.2,6.19384856]
[1748714129083,9.56e-06,2529.3,2529.2,1.90584856]
[1748714129276,9.56e-06,2529.3,2529.2,6.19384856]
[1748714134588,9.56e-06,2529.3,2529.2,5.07838]
[1748714138881,5.00000956,2529.3,2528.3,3.2078]
[1748714139084,3.2078,2527.9,2525.0,12.56325803]
[1748714139281,3.2078,2525.8,2525.0,12.56325803]
[1748714139481,3.2078,2525.7,2525.3,9.74342748]
[1748714139881,3.2078,2525.7,2525.4,0.79154]
[1748714140086,3.2078,2525.7,2525.3,9.74342748]
[1748714140087,3.2078,2525.7,2525.0,4.87705803]
[1748714140284,3.2078,2525.1,2524.3,15.70407254]
[1748714140476,3.2078,2524.6,2524.3,15.70407254]
[1748714140790,3.2078,2524.7,2524.6,0.79181]
[1748714140983,3.2078,2525.0,2524.9,0.79172]
[1748714141985,3.2078,2525.0,2524.6,4.93]
[1748714142188,0.00594189,2525.2,2523.1,3.2078]
[1748714142189,3.2078,2524.7,2523.1,3.2078]
[1748714142378,3.2078,2524.1,2524.0,0.79201]
[1748714142576,3.2078,2524.3,2524.2,0.79194]
[1748714142777,3.2078,2524.3,2523.9,1.3383]
[1748714142981,3.2078,2524.3,2524.0,0.79199]
[1748714143188,3.2078,2524.3,2524.1,1.3383]
[1748714143586,3.2078,2524.3,2524.2,5.257]
[1748714143786,3.2078,2524.3,2524.1,2.13025]
[1748714143983,3.2078,2524.3,2524.2,7.38724]
[1748714144290,3.2078,2524.6,2524.2,5.257]
[1748714144585,2.39488,2524.3,2524.2,0.79194]
[1748714144792,0.00594189,2525.2,2525.1,0.79166]
[1748714144993,0.00594189,2525.2,2525.1,9.25946]
[1748714145286,3.2078,2525.7,2525.6,0.7915]
[1748714145492,1.2964,2525.9,2525.7,0.79145]
[1748714145694,1.2964,2525.9,2525.7,1.2883]
[1748714146098,3.2078,2526.1,2525.8,0.79144]
[1748714146594,3.2078,2526.1,2525.7,2.08570189]
[1748714146796,4.5042,2526.1,2525.7,2.08570189]
[1748714147193,4.5042,2526.1,2525.7,1.29424189]
[1748714147395,4.5042,2526.1,2525.8,1.2883]
[1748714147693,0.00594189,2526.2,2525.8,4.4961]
[1748714147894,0.00594189,2526.2,2526.1,0.79135]
[1748714148094,0.00594189,2526.2,2526.1,6.05135]
[1748714150090,0.00594189,2526.2,2526.1,11.05135]
[1748714150295,3.2078,2526.8,2526.1,13.4678]
[1748714150500,3.2078,2526.8,2526.7,0.79116]
[1748714150702,3.2078,2526.8,2526.7,6.05216]
[1748714150900,3.2078,2526.8,2526.7,5.261]
[1748714152295,3.2078,2526.8,2526.7,6.05216]
[1748714157303,3.2078,2526.8,2526.7,0.79116]
[1748714157602,0.00594189,2527.0,2526.9,0.7911]
[1748714157802,3.21374189,2527.0,2526.9,0.7911]
[1748714160002,3.21374189,2527.0,2526.9,6.0511]
[1748714163608,3.41154189,2527.0,2526.9,6.0511]
[1748714165199,4.20261189,2527.0,2526.9,5.26]
[1748714165400,4.20261189,2527.0,2526.9,0.7911]
[1748714165599,4.20261189,2527.0,2526.9,5.26]
[1748714166409,4.20261189,2527.0,2526.9,6.0511]
[1748714166608,3.41154189,2527.0,2526.9,7.3184]
[1748714166810,3.41154189,2527.0,2526.9,2.0584]
[1748714167009,4.20261189,2527.0,2526.9,2.0584]
[1748714167206,4.20261189,2527.0,2526.9,6.5273]
[1748714167406,5.38923189,2527.0,2526.4,0.6307]
[1748714167611,3.2078,2526.6,2526.5,7.3185]
[1748714168204,3.2078,2526.9,2526.8,0.79113]
[1748714168410,3.99891,2526.9,2526.8,0.79113]
[1748714168711,4.5342569,2526.9,2526.8,0.79113]
[1748714169010,5.3253569,2526.9,2526.8,0.79113]
[1748714169807,1.97791,2526.7,2525.9,5.18626]
[1748714170012,3.2078,2526.3,2526.2,0.79132]
[1748714170910,1.3264569,2526.6,2526.5,0.79122]
[1748714175015,3.65987595,2526.6,2526.5,5.86722]
[1748714176517,1.3264569,2526.6,2526.5,5.86722]
[1748714177318,1.3264569,2526.6,2526.5,0.79122]
[1748714177518,1.3264569,2526.6,2526.5,5.86722]
[1748714177721,2.6342569,2526.6,2526.5,5.86722]
[1748714178519,2.6342569,2526.6,2526.5,0.79122]
[1748714178820,2.6342569,2526.6,2526.5,5.86722]
[1748714179522,1.3264569,2526.6,2526.5,5.86722]
[1748714180017,1.3264569,2526.6,2526.5,0.79122]
[1748714180215,1.3264569,2526.6,2526.5,5.86722]
[1748714180418,1.3264569,2526.6,2525.9,5.8711]
[1748714180722,3.2078,2526.4,2526.3,0.79128]
[1748714181521,3.2078,2526.4,2526.3,5.86728]
[1748714182014,3.2078,2526.4,2525.9,0.6848]
[1748714182222,3.2078,2526.1,2526.0,5.86738]
[1748714183322,6.88189685,2526.1,2526.0,5.86738]
[1748714184225,6.88189685,2526.1,2526.0,0.79138]
[1748714184524,6.88189685,2526.1,2526.0,5.86838]
[1748714184723,4.5342569,2526.1,2526.0,5.86838]
[1748714186223,4.5342569,2526.1,2526.0,7.21178]
[1748714187428,1.3264569,2526.1,2526.0,7.21178]
[1748714187727,1.5243569,2526.1,2526.0,2.13478]
[1748714187920,1.5243569,2526.1,2526.0,7.21178]
[1748714189827,1.5243569,2526.1,2526.0,0.79138]
[1748714190225,1.5156627,2526.1,2526.0,0.79138]
[1748714191520,2.8715627,2526.1,2525.7,0.00594189]
[1748714191726,3.2078,2525.8,2525.7,2.05261189]
[1748714192832,3.2078,2525.8,2525.7,0.79741189]
[1748714193028,3.99924,2525.8,2525.7,0.00594189]
[1748714193328,3.2078,2525.8,2525.7,0.00594189]
[1748714193730,4.4721,2525.8,2525.7,0.00594189]
[1748714193932,4.4721,2525.8,2525.7,0.79741189]
[1748714194229,3.2078,2525.8,2525.7,0.79741189]
[1748714196030,3.2078,2525.8,2525.7,2.05101189]
[1748714196729,3.2078,2525.8,2525.7,2.70131189]
[1748714197436,0.1979,2526.1,2526.0,0.79138]
[1748714198831,2.29526,2526.1,2525.9,0.79139]
[1748714199129,1.5039,2526.1,2525.7,1.25954189]
[1748714199529,3.2078,2525.9,2525.8,0.79144]
[1748714207238,3.2078,2525.9,2525.8,2.10944]
[1748714210838,0.1979,2526.1,2526.0,0.79138]
[1748714213741,0.1979,2526.1,2526.0,2.14278]
[1748714217939,1.41624,2526.8,2526.7,0.79116]
[1748714218135,1.9948,2526.8,2526.7,0.79116]
[1748714218336,2.78593,2526.8,2526.7,0.79116]
[1748714218528,1.9948,2526.8,2526.7,0.79116]
[1748714219041,1.3697,2526.8,2526.7,0.79116]
[1748714219738,5.55543995,2526.9,2526.8,0.79113]
[1748714219945,3.2078,2526.9,2526.8,0.79113]
[1748714220336,8.2078,2526.9,2525.9,3.2078]
[1748714220543,3.99911,2526.3,2526.0,0.79137]
[1748714220742,1.3697,2526.2,2526.0,0.79137]
[1748714220944,1.3697,2526.2,2525.9,0.79139]
[1748714221141,1.9903,2526.2,2525.5,6.51351]
[1748714221342,0.79136,2526.1,2525.9,0.7914]
[1748714221541,1.3,2526.0,2525.9,0.7914]
[1748714222152,2.09138,2526.0,2525.9,0.7914]
[1748714222446,3.42177094,2526.0,2525.8,0.79142]
[1748714222747,2.63038094,2526.0,2525.9,0.79141]
[1748714228351,5.83818094,2526.0,2525.9,0.79141]
[1748714230247,6.62957094,2526.0,2525.9,0.79141]
[1748714230447,5.83818094,2526.0,2525.9,0.79141]
[1748714233656,4.53818094,2526.0,2525.9,0.79141]
[1748714233850,1.33038094,2526.0,2525.9,0.79141]
[1748714235351,3.2078,2526.3,2526.2,0.79132]
[1748714235955,2.34763995,2526.6,2526.5,0.79122]
[1748714236153,2.34763995,2526.6,2526.5,0.59332]
[1748714236859,3.9989,2526.9,2526.7,0.79114]
[1748714237162,3.2078,2526.9,2526.4,1.97814]
[1748714237358,3.2078,2526.9,2526.5,1.351]
[1748714237560,3.99891,2526.9,2526.7,0.79115]
[1748714237860,4.4961,2526.9,2526.8,0.79113]
[1748714238358,3.2078,2526.9,2526.8,0.79113]
[1748714239156,4.53760519,2526.9,2526.8,0.79113]
[1748714242964,3.2078,2526.9,2526.8,0.79113]
[1748714246065,0.00594189,2527.0,2526.9,0.7911]
[1748714259373,0.00594189,2527.0,2526.9,1.4383]
[1748714259674,0.00594189,2527.0,2526.9,2.7497]
[1748714265574,1.33657708,2527.0,2526.9,2.7497]
[1748714269971,3.2078,2527.4,2527.3,0.79097]
[1748714271778,3.2078,2527.4,2527.3,2.06067]
[1748714273377,0.00594189,2527.6,2527.5,0.79091]
[1748714274976,0.00594189,2527.6,2527.5,2.69161]
[1748714275881,0.00594189,2527.6,2527.5,5.89941]
[1748714276883,3.2078,2528.0,2527.9,0.79079]
[1748714277083,3.61893995,2528.1,2528.0,0.79075]
[1748714277276,7.61745995,2528.1,2528.0,0.79075]
[1748714277476,5.55543995,2528.1,2528.0,0.79075]
[1748714278383,3.2078,2528.1,2528.0,0.79075]
[1748714282985,4.52747555,2528.1,2528.0,0.79075]
[1748714283377,1.31967555,2528.1,2528.0,0.79075]
[1748714290592,1.31967555,2528.1,2527.5,4.57993]
[1748714290593,0.79094,2527.5,2527.1,5.19132189]
[1748714290797,0.79095,2527.4,2527.3,0.79095]
[1748714291094,0.79097,2527.3,2527.2,0.791]
[1748714291288,5.34667,2527.3,2527.2,0.791]
[1748714291990,5.87537555,2527.3,2527.2,0.791]
[1748714292383,7.24697555,2527.3,2527.2,0.791]
[1748714292900,5.9273,2527.3,2527.2,0.791]
[1748714295596,2.7195,2527.3,2527.2,0.791]
[1748714296798,2.0578,2527.3,2527.2,0.791]
[1748714300006,3.2078,2527.5,2527.4,0.79094]
[1748714300502,3.2078,2527.5,2527.1,3.28552189]
[1748714300503,4.4681,2527.5,2527.1,1.30794189]
[1748714300703,0.79095,2527.4,2527.3,0.79096]
[1748714300900,0.791,2527.2,2527.1,0.00594189]
[1748714301115,3.9988,2527.2,2527.1,0.00594189]
[1748714301601,3.9988,2527.2,2527.1,0.79698189]
[1748714302102,5.31688082,2527.2,2527.1,0.79698189]
[1748714302901,4.52588082,2527.2,2527.1,0.79698189]
[1748714303599,5.89748082,2527.2,2527.1,0.79698189]
[1748714304101,15.98948082,2527.2,2527.1,0.00594189]
[1748714304300,0.7911,2527.0,2526.9,0.79108]
[1748714304603,15.82618082,2527.2,2526.5,5.18585]
[1748714304604,4.52588082,2527.2,2527.1,0.79104]
[1748714304814,5.31688082,2527.2,2527.1,0.79104]
[1748714305011,0.79108,2527.0,2526.6,1.3072]
[1748714305226,2.1627,2526.9,2526.8,0.79113]
[1748714305411,1.3716,2526.9,2526.8,0.79113]
[1748714306315,4.5794,2526.9,2526.8,0.79113]
[1748714307118,5.3705,2526.9,2526.8,0.79113]
[1748714307719,0.79116,2526.7,2526.6,0.79118]
[1748714307908,0.79115,2526.8,2526.7,0.79114]
[1748714308111,2.10755,2526.8,2526.7,0.79114]
[1748714308614,1.3164,2526.8,2526.7,0.79114]
[1748714308917,22.0548,2526.9,2526.8,0.79113]
[1748714310419,3.2078,2526.9,2526.8,0.79113]
[1748714310717,3.9989,2526.9,2526.8,0.79113]
[1748714311126,3.2078,2526.9,2526.8,0.79113]
[1748714312519,3.9989,2526.9,2526.8,0.79113]
[1748714313314,3.2078,2526.9,2526.8,0.79113]
[1748714314010,3.2078,2526.9,2526.8,2.13873]
[1748714314218,1.42468189,2527.1,2527.0,0.79107]
[1748714315324,2.74172405,2527.1,2527.0,0.79107]
[1748714315517,2.11402405,2527.1,2527.0,0.79107]
[1748714316725,1.32298405,2527.1,2527.0,0.79107]
[1748714317022,2.11402405,2527.1,2527.0,0.79107]
[1748714317224,20.11998405,2527.1,2527.0,0.79107]
[1748714318018,1.32298405,2527.1,2527.0,0.79107]
[1748714319519,0.00594189,2527.1,2527.0,0.79107]
[1748714344150,2.6783,2527.4,2527.3,0.79097]
[1748714345653,3.33926866,2527.4,2527.3,0.79097]
[1748714348062,1.32246866,2527.4,2527.3,0.79097]
[1748714349163,0.00594189,2527.6,2527.5,0.79091]
[1748714349955,0.00594189,2527.6,2527.5,2.08241]
[1748714352961,3.2078,2528.1,2528.0,0.79075]
[1748714357168,3.99852,2528.1,2528.0,0.79075]
[1748714358369,3.2078,2528.1,2528.0,0.79075]
[1748714359373,3.2078,2528.1,2528.0,2.05745]
[1748714360875,0.00594189,2528.3,2528.2,0.79069]
[1748714361474,1.3091448,2528.3,2528.2,0.79069]
[1748714364568,0.00594189,2528.3,2528.2,0.79069]
[1748714364770,0.00594189,2528.3,2528.2,2.05459]
[1748714369975,0.00594189,2528.3,2528.2,0.79069]
[1748714370181,0.79071,2528.2,2528.1,0.79072]
[1748714370476,5.97071,2528.2,2528.1,0.79072]
[1748714371579,7.27153361,2528.2,2528.1,0.79072]
[1748714372880,4.06373361,2528.2,2528.1,0.79072]
[1748714373179,7.27153361,2528.2,2528.1,0.79072]
[1748714374075,6.48082361,2528.2,2527.8,1.29844189]
[1748714374472,0.79075,2528.1,2528.0,0.79074]
[1748714374673,2.11355,2528.1,2528.0,0.79074]
[1748714374972,3.41437361,2528.1,2528.0,0.79074]
[1748714375573,0.79079,2528.0,2527.9,0.79076]
[1748714375775,0.79079,2527.9,2527.8,0.00594189]
[1748714375984,3.99859,2527.9,2527.8,0.79676189]
[1748714376670,5.29941361,2527.9,2527.8,0.79676189]
[1748714378785,4.50862361,2527.9,2527.8,0.79676189]
[1748714382987,4.50862361,2527.9,2527.8,2.10736189]
[1748714383788,1.30082361,2527.9,2527.8,2.10736189]
[1748714385189,1.30082361,2528.1,2528.0,0.79075]
[1748714387687,1.30082361,2528.2,2528.1,0.79072]
[1748714389486,4.50862361,2528.2,2528.1,0.79072]
[1748714390783,1.30082361,2528.2,2528.1,0.79072]
[1748714391292,4.50862361,2528.2,2528.1,0.79072]
[1748714392994,1.30082361,2528.2,2528.1,0.79072]
[1748714393197,4.50862361,2528.2,2528.1,0.79072]
[1748714394198,1.30082361,2528.2,2528.1,0.79072]
[1748714394398,4.50862361,2528.2,2528.1,0.79072]
[1748714401002,0.79072,2528.1,2527.8,4.94276189]
[1748714401202,1.2601,2528.1,2528.0,0.79073]
[1748714401703,2.70662,2528.1,2528.0,0.79073]
[1748714402301,4.00744361,2528.1,2528.0,0.79073]
[1748714402900,0.79079,2528.0,2527.9,0.79076]
[1748714403101,4.00746361,2528.1,2528.0,0.79075]
[1748714403302,3.21672361,2528.1,2528.0,0.79075]
[1748714404207,21.79472361,2528.1,2528.0,0.79075]
[1748714405405,22.58544361,2528.1,2528.0,0.79075]
[1748714407009,21.79472361,2528.1,2528.0,0.79075]
[1748714407307,19.87882361,2528.1,2528.0,0.79075]
[1748714407505,1.30082361,2528.1,2528.0,0.79075]
[1748714412304,4.50862361,2528.1,2528.0,0.79075]